[Event "MČR juniorů a juniorek v rapid šachu 2023"]
[Site "Czech Republic"]
[Date "2023.09.23"]
[Round "6.10"]
[White "Jun, Rudolf"]
[Black "Mrazek, Adam"]
[Result "1-0"]
[TimeControl "20 min + 5 sec per move"]
[WhiteFideId "376612"]
[BlackFideId "23725010"]
[WhiteElo "2151"]
[BlackElo "1753"]

1. e4 {[%clk 00:20:08]} {[%emt 00:00:01]} d6 {[%clk 00:20:07]} {[%emt
00:00:04]} 2. d4 {[%clk 00:20:11]} {[%emt 00:00:02]} g6 {[%clk 00:20:10]}
{[%emt 00:00:02]} 3. f4 {[%clk 00:20:16]} Bg7 {[%clk 00:20:14]} {[%emt
00:00:02]} 4. Nf3 {[%clk 00:20:20]} Nf6 {[%clk 00:20:16]} {[%emt 00:00:03]} 5.
Nc3 {[%clk 00:20:24]} c5 {[%clk 00:20:00]} {[%emt 00:00:21]} 6. dxc5 {[%clk
00:20:22]} {[%emt 00:00:06]} Qa5 {[%clk 00:19:34]} {[%emt 00:00:31]} 7. Bb5+
{[%clk 00:19:59]} {[%emt 00:00:27]} Bd7 {[%clk 00:18:34]} {[%emt 00:01:05]} 8.
Bxd7+ {[%clk 00:19:10]} {[%emt 00:00:53]} Nbxd7 {[%clk 00:18:20]} {[%emt
00:00:21]} 9. Bd2 {[%clk 00:19:03]} {[%emt 00:00:11]} Qxc5 {[%clk 00:15:52]}
{[%emt 00:02:33]} 10. Qe2 {[%clk 00:19:06]} {[%emt 00:00:03]} O-O {[%clk
00:15:40]} {[%emt 00:00:16]} 11. a3 {[%clk 00:15:28]} {[%emt 00:03:44]} a6
{[%clk 00:12:24]} {[%emt 00:03:21]} 12. Be3 {[%clk 00:14:03]} {[%emt 00:01:29]}
Qc7 {[%clk 00:11:52]} {[%emt 00:00:38]} 13. Bd4 {[%clk 00:13:27]} {[%emt
00:00:40]} b5 {[%clk 00:05:32]} {[%emt 00:06:25]} 14. O-O {[%clk 00:13:24]}
{[%emt 00:00:08]} Rfc8 {[%clk 00:05:30]} {[%emt 00:00:07]} 15. Rad1 {[%clk
00:11:49]} {[%emt 00:01:40]} Nb6 {[%clk 00:04:31]} {[%emt 00:01:04]} 16. e5
{[%clk 00:11:07]} {[%emt 00:00:47]} dxe5 {[%clk 00:03:00]} {[%emt 00:01:36]} 17.
fxe5 {[%clk 00:11:08]} {[%emt 00:00:04]} Ng4 {[%clk 00:02:42]} {[%emt
00:00:23]} 18. h3 {[%clk 00:10:01]} {[%emt 00:01:12]} Nh6 {[%clk 00:02:42]}
{[%emt 00:00:05]} 19. e6 {[%clk 00:10:04]} {[%emt 00:00:02]} f5 {[%clk
00:02:13]} {[%emt 00:00:34]} 20. Bxg7 {[%clk 00:08:42]} {[%emt 00:01:27]} Kxg7
{[%clk 00:02:14]} {[%emt 00:00:04]} 21. Qe3 {[%clk 00:08:27]} {[%emt 00:00:20]}
Ng8 {[%clk 00:01:30]} {[%emt 00:00:49]} 22. Ne5 {[%clk 00:06:51]} {[%emt
00:01:40]} Nf6 {[%clk 00:00:59]} {[%emt 00:00:38]} 23. Nd7 {[%clk 00:06:53]}
{[%emt 00:00:02]} Nc4 {[%clk 00:00:27]} {[%emt 00:00:37]} 24. Qd4 {[%clk
00:06:26]} {[%emt 00:00:33]} Rd8 {[%clk 00:00:21]} {[%emt 00:00:11]} 25. Nd5
{[%clk 00:06:08]} {[%emt 00:00:22]} Qa7 {[%clk 00:00:14]} {[%emt 00:00:13]} 26.
N5xf6 {[%clk 00:05:05]} {[%emt 00:01:07]} Qxd4+ {[%clk 00:00:08]} {[%emt
00:00:11]} 27. Rxd4 {[%clk 00:05:07]} {[%emt 00:00:03]} exf6 {[%clk 00:00:10]}
{[%emt 00:00:04]} 28. Re1 {[%clk 00:03:38]} {[%emt 00:01:34]} Ne5 {[%clk
00:00:07]} {[%emt 00:00:07]} 29. e7 {[%clk 00:03:19]} {[%emt 00:00:24]} Rxd7
{[%clk 00:00:08]} {[%emt 00:00:04]} 30. Rxd7 {[%clk 00:03:21]} {[%emt
00:00:03]} Nxd7 {[%clk 00:00:06]} {[%emt 00:00:08]} 31. e8=Q {[%clk 00:03:21]}
{[%emt 00:00:04]} 1-0

[Event "MČR juniorů a juniorek v rapid šachu 2023"]
[Site "Czech Republic"]
[Date "2023.09.23"]
[Round "6.11"]
[White "Stastna, Martina"]
[Black "Vilimek, Vit"]
[Result "0-1"]
[TimeControl "20 min + 5 sec per move"]
[WhiteFideId "385123"]
[BlackFideId "23718218"]
[WhiteElo "1725"]
[BlackElo "1898"]

1. e4 {[%clk 00:20:08]} {[%emt 00:00:01]} c5 {[%clk 00:20:10]} 2. Nf3 {[%clk
00:20:11]} {[%emt 00:00:03]} Nc6 {[%clk 00:20:13]} 3. Bb5 {[%clk 00:20:15]}
{[%emt 00:00:01]} g6 {[%clk 00:20:16]} {[%emt 00:00:03]} 4. Bxc6 {[%clk
00:20:07]} {[%emt 00:00:13]} dxc6 {[%clk 00:20:20]} 5. h3 {[%clk 00:19:53]}
{[%emt 00:00:18]} Bg7 {[%clk 00:20:22]} {[%emt 00:00:03]} 6. O-O {[%clk
00:19:33]} {[%emt 00:00:25]} e5 {[%clk 00:20:23]} {[%emt 00:00:04]} 7. d3
{[%clk 00:19:25]} {[%emt 00:00:12]} Qe7 {[%clk 00:20:26]} {[%emt 00:00:03]} 8.
Be3 {[%clk 00:19:20]} {[%emt 00:00:10]} Nf6 {[%clk 00:20:22]} {[%emt 00:00:09]}
9. Qd2 {[%clk 00:19:19]} {[%emt 00:00:06]} Nd7 {[%clk 00:20:25]} {[%emt
00:00:02]} 10. Nc3 {[%clk 00:18:13]} {[%emt 00:01:11]} Nf8 {[%clk 00:20:19]}
{[%emt 00:00:11]} 11. Bh6 {[%clk 00:17:02]} {[%emt 00:01:15]} f6 {[%clk
00:20:23]} {[%emt 00:00:02]} 12. Bxg7 {[%clk 00:16:43]} {[%emt 00:00:24]} Qxg7
{[%clk 00:20:27]} {[%emt 00:00:01]} 13. Nh2 {[%clk 00:16:45]} {[%emt 00:00:03]}
Ne6 {[%clk 00:20:31]} {[%emt 00:00:02]} 14. Ne2 {[%clk 00:16:41]} {[%emt
00:00:08]} g5 {[%clk 00:20:02]} {[%emt 00:00:34]} 15. Ng3 {[%clk 00:15:41]}
{[%emt 00:01:06]} Nf4 {[%clk 00:20:00]} {[%emt 00:00:06]} 16. Nf5 {[%clk
00:15:27]} {[%emt 00:00:20]} Bxf5 {[%clk 00:20:03]} {[%emt 00:00:02]} 17. exf5
{[%clk 00:15:30]} {[%emt 00:00:01]} Qd7 {[%clk 00:19:41]} {[%emt 00:00:27]} 18.
Qe3 {[%clk 00:13:42]} {[%emt 00:01:53]} b6 {[%clk 00:18:18]} {[%emt 00:01:28]}
19. Qe4 {[%clk 00:13:20]} {[%emt 00:00:26]} O-O-O {[%clk 00:18:04]} {[%emt
00:00:20]} 20. Ng4 {[%clk 00:11:59]} {[%emt 00:01:26]} Qd6 {[%clk 00:17:17]}
{[%emt 00:00:52]} 21. Ne3 {[%clk 00:11:40]} {[%emt 00:00:23]} Qc7 {[%clk
00:16:58]} {[%emt 00:00:25]} 22. Qc4 {[%clk 00:10:05]} {[%emt 00:01:40]} Kb7
{[%clk 00:15:55]} {[%emt 00:01:08]} 23. a4 {[%clk 00:09:38]} {[%emt 00:00:32]}
Rd4 {[%clk 00:15:52]} {[%emt 00:00:08]} 24. Qb3 {[%clk 00:09:27]} {[%emt
00:00:16]} h5 {[%clk 00:14:47]} {[%emt 00:01:10]} 25. a5 {[%clk 00:08:47]}
{[%emt 00:00:45]} b5 {[%clk 00:14:50]} {[%emt 00:00:03]} 26. a6+ {[%clk
00:08:51]} {[%emt 00:00:02]} Kb8 {[%clk 00:14:22]} {[%emt 00:00:32]} 27. Qa3
{[%clk 00:06:04]} {[%emt 00:02:52]} Qd6 {[%clk 00:13:20]} {[%emt 00:01:07]} 28.
Qb3 {[%clk 00:05:50]} {[%emt 00:00:20]} Qc7 {[%clk 00:09:24]} {[%emt 00:04:00]}
29. Kh1 {[%clk 00:04:44]} {[%emt 00:01:10]} h4 {[%clk 00:07:19]} {[%emt
00:02:11]} 30. Qa3 {[%clk 00:04:25]} {[%emt 00:00:25]} Qd6 {[%clk 00:06:51]}
{[%emt 00:00:32]} 31. Qb3 {[%clk 00:04:29]} Qc7 {[%clk 00:06:02]} {[%emt
00:00:55]} 32. Qa3 {[%clk 00:04:33]} Qe7 {[%clk 00:06:06]} 33. Ng4 {[%clk
00:04:16]} {[%emt 00:00:21]} Nh5 {[%clk 00:03:52]} {[%emt 00:02:19]} 34. Rfd1
{[%clk 00:03:56]} {[%emt 00:00:24]} Qd6 {[%clk 00:02:49]} {[%emt 00:01:09]} 35.
Qb3 {[%clk 00:03:54]} {[%emt 00:00:08]} Rf8 {[%clk 00:02:35]} {[%emt 00:00:19]}
36. c3 {[%clk 00:03:24]} {[%emt 00:00:34]} Rf4 {[%clk 00:01:15]} {[%emt
00:01:25]} 37. Ne3 {[%clk 00:03:08]} {[%emt 00:00:21]} Rxf2 {[%clk 00:01:11]}
{[%emt 00:00:10]} 38. Kg1 {[%clk 00:02:25]} {[%emt 00:00:47]} Re2 {[%clk
00:01:07]} {[%emt 00:00:10]} 39. Ng4 {[%clk 00:02:20]} {[%emt 00:00:10]} Nf4
{[%clk 00:01:00]} {[%emt 00:00:11]} 40. Nf2 {[%clk 00:02:22]} {[%emt 00:00:03]}
Kc7 {[%clk 00:00:31]} {[%emt 00:00:35]} 41. Qa3 {[%clk 00:02:07]} {[%emt
00:00:20]} Qd5 {[%clk 00:00:28]} {[%emt 00:00:07]} 42. Ne4 {[%clk 00:01:28]}
{[%emt 00:00:44]} Rxe4 {[%clk 00:00:19]} {[%emt 00:00:14]} 43. dxe4 {[%clk
00:01:25]} {[%emt 00:00:09]} Qxe4 {[%clk 00:00:23]} 44. Rd2 {[%clk 00:01:12]}
{[%emt 00:00:17]} Qe3+ {[%clk 00:00:27]} {[%emt 00:00:01]} 45. Rf2 {[%clk
00:01:17]} Nd3 {[%clk 00:00:28]} {[%emt 00:00:03]} 46. Raf1 {[%clk 00:01:21]}
Rd8 {[%clk 00:00:26]} {[%emt 00:00:09]} 47. Qa5+ {[%clk 00:01:08]} {[%emt
00:00:17]} Kc8 {[%clk 00:00:29]} {[%emt 00:00:02]} 48. Qa2 {[%clk 00:00:56]}
{[%emt 00:00:16]} Nxf2 {[%clk 00:00:18]} {[%emt 00:00:17]} 49. Qe6+ {[%clk
00:00:51]} {[%emt 00:00:10]} Kc7 {[%clk 00:00:20]} {[%emt 00:00:03]} 50. Qf7+
{[%clk 00:00:17]} {[%emt 00:00:39]} Rd7 {[%clk 00:00:23]} {[%emt 00:00:03]} 51.
Qe8 {[%clk 00:00:14]} {[%emt 00:00:07]} Ne4+ {[%clk 00:00:17]} {[%emt
00:00:12]} 52. Kh1 {[%clk 00:00:18]} {[%emt 00:00:01]} Ng3+ {[%clk 00:00:19]}
{[%emt 00:00:02]} 0-1

[Event "MČR juniorů a juniorek v rapid šachu 2023"]
[Site "Czech Republic"]
[Date "2023.09.23"]
[Round "6.12"]
[White "Rucabado, Stefan"]
[Black "Zadrapa, Jakub"]
[Result "0-1"]
[TimeControl "20 min + 5 sec per move"]
[WhiteFideId "23730315"]
[BlackFideId "23714778"]
[WhiteElo "1782"]
[BlackElo "1696"]

1. e4 {[%clk 00:20:09]} e5 {[%clk 00:20:09]} {[%emt 00:00:02]} 2. Nf3 {[%clk
00:20:12]} {[%emt 00:00:01]} Nc6 {[%clk 00:20:12]} {[%emt 00:00:01]} 3. Bc4
{[%clk 00:20:16]} {[%emt 00:00:02]} Nf6 {[%clk 00:20:16]} 4. d3 {[%clk
00:20:20]} {[%emt 00:00:01]} Bc5 {[%clk 00:20:20]} {[%emt 00:00:01]} 5. c3
{[%clk 00:20:24]} a6 {[%clk 00:19:49]} {[%emt 00:00:36]} 6. Bb3 {[%clk
00:20:26]} {[%emt 00:00:03]} h6 {[%clk 00:19:22]} {[%emt 00:00:33]} 7. O-O
{[%clk 00:20:24]} {[%emt 00:00:06]} d6 {[%clk 00:19:15]} {[%emt 00:00:12]} 8.
Re1 {[%clk 00:20:24]} {[%emt 00:00:05]} O-O {[%clk 00:19:06]} {[%emt 00:00:14]}
9. Nbd2 {[%clk 00:20:24]} {[%emt 00:00:05]} Kh8 {[%clk 00:18:34]} {[%emt
00:00:38]} 10. Nf1 {[%clk 00:20:21]} {[%emt 00:00:08]} Bd7 {[%clk 00:16:12]}
{[%emt 00:02:27]} 11. Ng3 {[%clk 00:20:18]} {[%emt 00:00:07]} Nh7 {[%clk
00:15:49]} {[%emt 00:00:29]} 12. Be3 {[%clk 00:18:53]} {[%emt 00:01:30]} Bxe3
{[%clk 00:14:50]} {[%emt 00:01:04]} 13. Rxe3 {[%clk 00:18:56]} f5 {[%clk
00:12:58]} {[%emt 00:01:58]} 14. exf5 {[%clk 00:18:57]} {[%emt 00:00:03]} Bxf5
{[%clk 00:13:01]} {[%emt 00:00:03]} 15. Nxf5 {[%clk 00:18:08]} {[%emt
00:00:54]} Rxf5 {[%clk 00:13:04]} {[%emt 00:00:02]} 16. d4 {[%clk 00:17:54]}
{[%emt 00:00:19]} Ng5 {[%clk 00:11:59]} {[%emt 00:01:09]} 17. dxe5 {[%clk
00:17:17]} {[%emt 00:00:43]} Nxf3+ {[%clk 00:11:34]} {[%emt 00:00:30]} 18. Rxf3
{[%clk 00:17:21]} Rxe5 {[%clk 00:11:13]} {[%emt 00:00:26]} 19. Qd3 {[%clk
00:16:55]} {[%emt 00:00:30]} Qe8 {[%clk 00:09:40]} {[%emt 00:01:38]} 20. g3
{[%clk 00:14:32]} {[%emt 00:02:28]} Re1+ {[%clk 00:08:22]} {[%emt 00:01:24]} 21.
Rxe1 {[%clk 00:13:02]} {[%emt 00:01:34]} Qxe1+ {[%clk 00:08:25]} {[%emt
00:00:02]} 22. Qf1 {[%clk 00:13:06]} Qd2 {[%clk 00:07:45]} {[%emt 00:00:45]} 23.
Qb1 {[%clk 00:04:44]} {[%emt 00:08:27]} Ne5 {[%clk 00:07:26]} {[%emt 00:00:24]}
24. Re3 {[%clk 00:04:03]} {[%emt 00:00:47]} Rf8 {[%clk 00:07:04]} {[%emt
00:00:27]} 25. Qf1 {[%clk 00:00:24]} {[%emt 00:03:40]} Nf3+ {[%clk 00:03:49]}
{[%emt 00:03:25]} 26. Kg2 {[%clk 00:00:21]} {[%emt 00:00:08]} Nxh2 {[%clk
00:02:44]} {[%emt 00:01:11]} 0-1

[Event "MČR juniorů a juniorek v rapid šachu 2023"]
[Site "Czech Republic"]
[Date "2023.09.23"]
[Round "6.13"]
[White "Hosova, Sandra"]
[Black "Rybackova, Lucie"]
[Result "0-1"]
[TimeControl "20 min + 5 sec per move"]
[WhiteFideId "397717"]
[BlackFideId "23739207"]
[WhiteElo "1682"]
[BlackElo "1768"]

1. d4 {[%clk 00:20:07]} {[%emt 00:00:03]} d5 {[%clk 00:20:01]} {[%emt
00:00:10]} 2. Bf4 {[%clk 00:20:09]} {[%emt 00:00:02]} Nf6 {[%clk 00:20:03]}
{[%emt 00:00:04]} 3. e3 {[%clk 00:20:12]} {[%emt 00:00:02]} c5 {[%clk
00:19:48]} {[%emt 00:00:20]} 4. Nf3 {[%clk 00:20:08]} {[%emt 00:00:08]} Nc6
{[%clk 00:19:43]} {[%emt 00:00:10]} 5. c3 {[%clk 00:19:15]} {[%emt 00:00:59]}
Qb6 {[%clk 00:19:32]} {[%emt 00:00:16]} 6. Qb3 {[%clk 00:18:54]} {[%emt
00:00:25]} c4 {[%clk 00:19:25]} {[%emt 00:00:12]} 7. Qxb6 {[%clk 00:18:54]}
{[%emt 00:00:05]} axb6 {[%clk 00:19:29]} {[%emt 00:00:01]} 8. Nbd2 {[%clk
00:17:37]} {[%emt 00:01:22]} b5 {[%clk 00:18:58]} {[%emt 00:00:37]} 9. b3
{[%clk 00:16:22]} {[%emt 00:01:20]} b4 {[%clk 00:14:41]} {[%emt 00:04:23]} 10.
bxc4 {[%clk 00:15:15]} {[%emt 00:01:11]} bxc3 {[%clk 00:14:43]} {[%emt
00:00:03]} 11. Nb3 {[%clk 00:13:33]} {[%emt 00:01:47]} Nb4 {[%clk 00:14:16]}
{[%emt 00:00:32]} 12. Kd1 {[%clk 00:12:16]} {[%emt 00:01:23]} Ne4 {[%clk
00:13:31]} {[%emt 00:00:50]} 13. Bg3 {[%clk 00:11:49]} {[%emt 00:00:31]} Rxa2
{[%clk 00:10:27]} {[%emt 00:03:10]} 14. Rxa2 {[%clk 00:11:43]} {[%emt
00:00:10]} Nxa2 {[%clk 00:10:30]} {[%emt 00:00:02]} 15. Ne1 {[%clk 00:06:17]}
{[%emt 00:05:30]} Bd7 {[%clk 00:08:30]} {[%emt 00:02:07]} 16. f3 {[%clk
00:05:09]} {[%emt 00:01:12]} Ba4 {[%clk 00:08:08]} {[%emt 00:00:26]} 17. fxe4
{[%clk 00:03:38]} {[%emt 00:01:36]} Bxb3+ {[%clk 00:08:12]} {[%emt 00:00:02]}
18. Ke2 {[%clk 00:02:26]} {[%emt 00:01:17]} dxc4 {[%clk 00:07:59]} {[%emt
00:00:18]} 19. Kf3 {[%clk 00:01:57]} {[%emt 00:00:34]} b5 {[%clk 00:07:38]}
{[%emt 00:00:25]} 20. Be2 {[%clk 00:01:00]} {[%emt 00:01:03]} e6 {[%clk
00:05:48]} {[%emt 00:01:55]} 21. e5 {[%clk 00:00:40]} {[%emt 00:00:25]} Ba3
{[%clk 00:05:01]} {[%emt 00:00:51]} 22. e4 {[%clk 00:00:30]} {[%emt 00:00:15]}
O-O {[%clk 00:04:10]} {[%emt 00:00:57]} 23. Kf2 {[%clk 00:00:15]} {[%emt
00:00:20]} c2 {[%clk 00:04:10]} {[%emt 00:00:05]} 24. Nxc2 {[%clk 00:00:10]}
{[%emt 00:00:10]} Bxc2 {[%clk 00:04:13]} {[%emt 00:00:02]} 25. Kf3 {[%clk
00:00:10]} {[%emt 00:00:04]} Rd8 {[%clk 00:03:57]} {[%emt 00:00:21]} 26. Bf2
{[%clk 00:00:10]} {[%emt 00:00:05]} Nc3 {[%clk 00:03:44]} {[%emt 00:00:18]} 27.
Ra1 {[%clk 00:00:08]} {[%emt 00:00:07]} Nxe2 {[%clk 00:02:22]} {[%emt
00:01:28]} 28. Rxa3 {[%clk 00:00:10]} {[%emt 00:00:03]} b4 {[%clk 00:02:24]}
{[%emt 00:00:03]} 29. Ra7 {[%clk 00:00:07]} {[%emt 00:00:07]} b3 {[%clk
00:02:16]} {[%emt 00:00:13]} 30. Rb7 {[%clk 00:00:11]} {[%emt 00:00:02]} Nc3
{[%clk 00:02:12]} {[%emt 00:00:09]} 31. Be1 {[%clk 00:00:12]} {[%emt 00:00:04]}
Na4 {[%clk 00:02:07]} {[%emt 00:00:10]} 32. Ke3 {[%clk 00:00:13]} {[%emt
00:00:04]} b2 {[%clk 00:02:07]} {[%emt 00:00:05]} 33. Rxb2 {[%clk 00:00:12]}
{[%emt 00:00:06]} Nxb2 {[%clk 00:02:11]} {[%emt 00:00:01]} 0-1

[Event "MČR juniorů a juniorek v rapid šachu 2023"]
[Site "Czech Republic"]
[Date "2023.09.23"]
[Round "6.14"]
[White "Rybacek, Martin"]
[Black "Pejrimovsky, Tadeas Rubel"]
[Result "1-0"]
[TimeControl "20 min + 5 sec per move"]
[WhiteFideId "23739266"]
[BlackFideId "23709537"]
[WhiteElo "1755"]
[BlackElo "1679"]

1. d4 {[%clk 00:20:07]} {[%emt 00:00:03]} Nf6 {[%clk 00:20:04]} {[%emt
00:00:06]} 2. Nf3 {[%clk 00:20:11]} {[%emt 00:00:01]} g6 {[%clk 00:20:03]}
{[%emt 00:00:06]} 3. g3 {[%clk 00:20:13]} {[%emt 00:00:03]} Bg7 {[%clk
00:19:48]} {[%emt 00:00:20]} 4. Bg2 {[%clk 00:20:17]} {[%emt 00:00:01]} d6
{[%clk 00:19:52]} {[%emt 00:00:01]} 5. O-O {[%clk 00:20:20]} {[%emt 00:00:02]}
O-O {[%clk 00:19:56]} {[%emt 00:00:02]} 6. c4 {[%clk 00:20:22]} {[%emt
00:00:02]} Nbd7 {[%clk 00:19:53]} {[%emt 00:00:08]} 7. Nc3 {[%clk 00:20:05]}
{[%emt 00:00:23]} e5 {[%clk 00:19:53]} {[%emt 00:00:05]} 8. e4 {[%clk
00:19:50]} {[%emt 00:00:20]} a5 {[%clk 00:19:53]} {[%emt 00:00:05]} 9. h3
{[%clk 00:19:39]} {[%emt 00:00:15]} c6 {[%clk 00:19:54]} {[%emt 00:00:04]} 10.
Be3 {[%clk 00:19:38]} {[%emt 00:00:06]} Qc7 {[%clk 00:19:11]} {[%emt 00:00:49]}
11. Qc2 {[%clk 00:19:22]} {[%emt 00:00:20]} Nh5 {[%clk 00:17:53]} {[%emt
00:01:23]} 12. Rfd1 {[%clk 00:17:41]} {[%emt 00:01:46]} Nb6 {[%clk 00:15:30]}
{[%emt 00:02:28]} 13. b3 {[%clk 00:16:51]} {[%emt 00:00:55]} f5 {[%clk
00:15:29]} {[%emt 00:00:06]} 14. dxe5 {[%clk 00:15:58]} {[%emt 00:00:58]} dxe5
{[%clk 00:15:32]} {[%emt 00:00:02]} 15. Bc5 {[%clk 00:15:50]} {[%emt 00:00:13]}
Re8 {[%clk 00:15:07]} {[%emt 00:00:30]} 16. Rd2 {[%clk 00:12:17]} {[%emt
00:03:38]} Nd7 {[%clk 00:14:48]} {[%emt 00:00:24]} 17. Bd6 {[%clk 00:11:55]}
{[%emt 00:00:27]} Qb6 {[%clk 00:14:10]} {[%emt 00:00:43]} 18. Na4 {[%clk
00:11:22]} {[%emt 00:00:39]} Qa7 {[%clk 00:13:57]} {[%emt 00:00:18]} 19. Rad1
{[%clk 00:09:41]} {[%emt 00:01:46]} Nxg3 {[%clk 00:12:39]} {[%emt 00:01:22]} 20.
exf5 {[%clk 00:09:04]} {[%emt 00:00:42]} Nxf5 {[%clk 00:12:42]} {[%emt
00:00:02]} 21. c5 {[%clk 00:08:37]} {[%emt 00:00:32]} Nxd6 {[%clk 00:07:36]}
{[%emt 00:05:11]} 22. Rxd6 {[%clk 00:08:40]} {[%emt 00:00:02]} Nf6 {[%clk
00:05:43]} {[%emt 00:01:58]} 23. Nb6 {[%clk 00:08:01]} {[%emt 00:00:45]} Bf5
{[%clk 00:05:46]} {[%emt 00:00:02]} 24. Qc4+ {[%clk 00:07:59]} {[%emt
00:00:07]} Nd5 {[%clk 00:05:31]} {[%emt 00:00:20]} 25. Nxd5 {[%clk 00:06:16]}
{[%emt 00:01:48]} cxd5 {[%clk 00:05:35]} {[%emt 00:00:01]} 26. Qxd5+ {[%clk
00:06:19]} Kh8 {[%clk 00:05:39]} 27. Ng5 {[%clk 00:05:08]} {[%emt 00:01:16]} h6
{[%clk 00:05:09]} {[%emt 00:00:35]} 28. Nf7+ {[%clk 00:04:49]} {[%emt
00:00:24]} Kh7 {[%clk 00:05:00]} {[%emt 00:00:14]} 29. Be4 {[%clk 00:03:49]}
{[%emt 00:01:05]} Bxe4 {[%clk 00:04:26]} {[%emt 00:00:39]} 30. Qxe4 {[%clk
00:03:53]} {[%emt 00:00:01]} Qxc5 {[%clk 00:04:28]} {[%emt 00:00:04]} 31. Qxg6+
{[%clk 00:03:47]} {[%emt 00:00:10]} Kg8 {[%clk 00:04:30]} {[%emt 00:00:02]} 32.
Nxh6+ {[%clk 00:03:37]} {[%emt 00:00:16]} Kh8 {[%clk 00:04:26]} {[%emt
00:00:09]} 33. Rd7 {[%clk 00:03:04]} {[%emt 00:00:38]} Re7 {[%clk 00:04:03]}
{[%emt 00:00:28]} 34. Rd8+ {[%clk 00:02:45]} {[%emt 00:00:25]} Re8 {[%clk
00:02:58]} {[%emt 00:01:10]} 35. Qxe8+ {[%clk 00:02:30]} {[%emt 00:00:19]} Kh7
{[%clk 00:02:57]} {[%emt 00:00:06]} 36. Rxa8 {[%clk 00:02:12]} {[%emt
00:00:24]} Kxh6 {[%clk 00:02:50]} {[%emt 00:00:11]} 37. Qe6+ {[%clk 00:02:02]}
{[%emt 00:00:14]} Kh7 {[%clk 00:02:54]} {[%emt 00:00:02]} 38. Qf5+ {[%clk
00:01:44]} {[%emt 00:00:24]} Kh6 {[%clk 00:02:58]} 39. h4 {[%clk 00:01:27]}
{[%emt 00:00:22]} Qb4 {[%clk 00:02:17]} {[%emt 00:00:46]} 40. Qg5+ {[%clk
00:01:27]} {[%emt 00:00:05]} Kh7 {[%clk 00:02:20]} 41. Qh5+ {[%clk 00:01:31]}
Bh6 {[%clk 00:02:24]} {[%emt 00:00:01]} 42. Rd7+ {[%clk 00:01:35]} 1-0

[Event "MČR juniorů a juniorek v rapid šachu 2023"]
[Site "Czech Republic"]
[Date "2023.09.23"]
[Round "6.15"]
[White "Tegda, Vojtech"]
[Black "Mrkvan, Frantisek"]
[Result "1/2-1/2"]
[TimeControl "20 min + 5 sec per move"]
[WhiteFideId "23723424"]
[BlackFideId "23721626"]
[WhiteElo "1959"]
[BlackElo "1601"]

1. e4 {[%clk 00:20:05]} {[%emt 00:07:20]} c5 {[%clk 00:20:07]} {[%emt
00:00:06]} 2. c4 {[%clk 00:20:09]} {[%emt 00:00:01]} Nc6 {[%clk 00:20:01]}
{[%emt 00:00:11]} 3. Ne2 {[%clk 00:20:10]} {[%emt 00:00:05]} e5 {[%clk
00:19:57]} {[%emt 00:00:09]} 4. Nbc3 {[%clk 00:20:05]} {[%emt 00:00:09]} d6
{[%clk 00:19:55]} {[%emt 00:00:07]} 5. d3 {[%clk 00:20:05]} {[%emt 00:00:05]}
Nf6 {[%clk 00:19:39]} {[%emt 00:00:21]} 6. g3 {[%clk 00:20:05]} {[%emt
00:00:05]} Bg4 {[%clk 00:19:33]} {[%emt 00:00:11]} 7. Bg2 {[%clk 00:18:32]}
{[%emt 00:01:37]} Qd7 {[%clk 00:18:59]} {[%emt 00:00:40]} 8. h3 {[%clk
00:18:14]} {[%emt 00:00:22]} Be6 {[%clk 00:19:02]} {[%emt 00:00:03]} 9. Bd2
{[%clk 00:17:53]} {[%emt 00:00:26]} Be7 {[%clk 00:18:46]} {[%emt 00:00:21]} 10.
g4 {[%clk 00:17:38]} {[%emt 00:00:20]} O-O {[%clk 00:17:43]} {[%emt 00:01:09]}
11. Ng3 {[%clk 00:17:27]} {[%emt 00:00:15]} Nd4 {[%clk 00:16:12]} {[%emt
00:01:36]} 12. O-O {[%clk 00:17:16]} {[%emt 00:00:16]} Ne8 {[%clk 00:13:22]}
{[%emt 00:02:55]} 13. f4 {[%clk 00:16:56]} {[%emt 00:00:26]} exf4 {[%clk
00:13:00]} {[%emt 00:00:26]} 14. Bxf4 {[%clk 00:16:39]} {[%emt 00:00:22]} Bf6
{[%clk 00:12:45]} {[%emt 00:00:21]} 15. Nf5 {[%clk 00:16:00]} {[%emt 00:00:44]}
Bxf5 {[%clk 00:11:37]} {[%emt 00:01:12]} 16. gxf5 {[%clk 00:15:38]} {[%emt
00:00:27]} Be5 {[%clk 00:11:41]} {[%emt 00:00:01]} 17. Nd5 {[%clk 00:15:18]}
{[%emt 00:00:26]} f6 {[%clk 00:09:46]} {[%emt 00:01:59]} 18. Qg4 {[%clk
00:14:50]} {[%emt 00:00:33]} Bxf4 {[%clk 00:09:35]} {[%emt 00:00:17]} 19. Rxf4
{[%clk 00:14:01]} {[%emt 00:00:53]} Nc7 {[%clk 00:09:17]} {[%emt 00:00:23]} 20.
Nc3 {[%clk 00:13:46]} {[%emt 00:00:20]} Rab8 {[%clk 00:07:12]} {[%emt
00:02:10]} 21. a3 {[%clk 00:13:03]} {[%emt 00:00:49]} b5 {[%clk 00:06:51]}
{[%emt 00:00:26]} 22. cxb5 {[%clk 00:11:17]} {[%emt 00:01:50]} Ncxb5 {[%clk
00:06:45]} {[%emt 00:00:11]} 23. Rf2 {[%clk 00:11:11]} {[%emt 00:00:10]} Nc6
{[%clk 00:05:49]} {[%emt 00:01:01]} 24. Nd5 {[%clk 00:10:21]} {[%emt 00:00:55]}
Ne5 {[%clk 00:05:44]} {[%emt 00:00:10]} 25. Qg3 {[%clk 00:09:54]} {[%emt
00:00:32]} Nd4 {[%clk 00:05:10]} {[%emt 00:00:40]} 26. Rc1 {[%clk 00:09:19]}
{[%emt 00:00:40]} Rb3 {[%clk 00:04:51]} {[%emt 00:00:24]} 27. Rc3 {[%clk
00:08:59]} {[%emt 00:00:24]} Qb7 {[%clk 00:03:36]} {[%emt 00:01:21]} 28. Rxb3
{[%clk 00:08:37]} {[%emt 00:00:27]} Qxb3 {[%clk 00:03:39]} {[%emt 00:00:03]} 29.
Rd2 {[%clk 00:07:52]} {[%emt 00:00:50]} Kh8 {[%clk 00:03:01]} {[%emt 00:00:43]}
30. h4 {[%clk 00:07:41]} {[%emt 00:00:15]} c4 {[%clk 00:02:31]} {[%emt
00:00:36]} 31. Qf2 {[%clk 00:07:18]} {[%emt 00:00:27]} Nec6 {[%clk 00:02:15]}
{[%emt 00:00:22]} 32. dxc4 {[%clk 00:06:51]} {[%emt 00:00:32]} Qxc4 {[%clk
00:02:19]} {[%emt 00:00:01]} 33. Bf1 {[%clk 00:06:49]} {[%emt 00:00:06]} Qb3
{[%clk 00:02:07]} {[%emt 00:00:17]} 34. Rxd4 {[%clk 00:06:08]} {[%emt
00:00:45]} Nxd4 {[%clk 00:02:11]} {[%emt 00:00:02]} 35. Qxd4 {[%clk 00:06:11]}
{[%emt 00:00:02]} Qg3+ {[%clk 00:02:15]} 36. Bg2 {[%clk 00:06:15]} Qe1+ {[%clk
00:02:09]} {[%emt 00:00:11]} 1/2-1/2